[Event "Polofinale MCR junioru 2023"]
[Site "Czech Republic"]
[Date "2023.11.18"]
[Round "9.11"]
[White "Hurtik, Matej"]
[Black "Bezdek, Tomas"]
[Result "1-0"]
[TimeControl "90 min per 40 moves + 15 min + 30 sec / move from move 1"]
[WhiteFideId "397997"]
[BlackFideId "23733551"]
[WhiteElo "2131"]
[BlackElo "2078"]

1. e4 {[%clk 01:30:33]} {[%emt 00:00:20]} e6 {[%clk 01:30:13]} {[%emt
00:00:54]} 2. d4 {[%clk 01:30:50]} {[%emt 00:00:12]} d5 {[%clk 01:30:33]}
{[%emt 00:00:11]} 3. Nd2 {[%clk 01:30:32]} {[%emt 00:00:48]} c5 {[%clk
01:30:17]} {[%emt 00:00:47]} 4. Ngf3 {[%clk 01:30:55]} {[%emt 00:00:06]} cxd4
{[%clk 01:30:40]} {[%emt 00:00:08]} 5. exd5 {[%clk 01:31:20]} {[%emt 00:00:05]}
Qxd5 {[%clk 01:31:04]} {[%emt 00:00:06]} 6. Bc4 {[%clk 01:31:44]} {[%emt
00:00:06]} Qd6 {[%clk 01:31:29]} {[%emt 00:00:04]} 7. O-O {[%clk 01:32:06]}
{[%emt 00:00:08]} Nf6 {[%clk 01:31:56]} {[%emt 00:00:03]} 8. Nb3 {[%clk
01:32:30]} {[%emt 00:00:06]} Nc6 {[%clk 01:32:21]} {[%emt 00:00:06]} 9. Nbxd4
{[%clk 01:32:52]} {[%emt 00:00:07]} Nxd4 {[%clk 01:32:29]} {[%emt 00:00:23]} 10.
Nxd4 {[%clk 01:33:05]} {[%emt 00:00:17]} a6 {[%clk 01:32:15]} {[%emt 00:00:44]}
11. c3 {[%clk 01:30:41]} {[%emt 00:02:55]} Be7 {[%clk 01:31:54]} {[%emt
00:00:50]} 12. Re1 {[%clk 01:29:33]} {[%emt 00:01:37]} b5 {[%clk 01:24:04]}
{[%emt 00:08:20]} 13. Qf3 {[%clk 01:28:08]} {[%emt 00:01:56]} Ra7 {[%clk
01:00:46]} {[%emt 00:23:45]} 14. Bf4 {[%clk 01:24:00]} {[%emt 00:04:39]} Qc5
{[%clk 00:56:53]} {[%emt 00:04:19]} 15. Bb3 {[%clk 01:11:52]} {[%emt 00:12:43]}
Bb7 {[%clk 00:45:41]} {[%emt 00:11:41]} 16. Qh3 {[%clk 01:09:22]} {[%emt
00:03:01]} Bd5 {[%clk 00:39:52]} {[%emt 00:06:18]} 17. Nxe6 {[%clk 01:01:30]}
{[%emt 00:08:24]} fxe6 {[%clk 00:31:26]} {[%emt 00:08:56]} 18. Be3 {[%clk
01:01:42]} {[%emt 00:00:18]} Qc7 {[%clk 00:31:18]} {[%emt 00:00:37]} 19. Bxd5
{[%clk 01:00:54]} {[%emt 00:01:18]} Nxd5 {[%clk 00:30:32]} {[%emt 00:01:16]} 20.
Bxa7 {[%clk 01:01:17]} {[%emt 00:00:08]} Qxa7 {[%clk 00:30:38]} {[%emt
00:00:24]} 21. Qxe6 {[%clk 01:00:51]} {[%emt 00:00:55]} Qb7 {[%clk 00:30:14]}
{[%emt 00:00:54]} 22. g3 {[%clk 00:55:44]} {[%emt 00:05:37]} Rf8 {[%clk
00:28:10]} {[%emt 00:02:34]} 23. Rad1 {[%clk 00:55:55]} {[%emt 00:00:20]} Nb6
{[%clk 00:28:23]} {[%emt 00:00:17]} 24. Rd6 {[%clk 00:55:12]} {[%emt 00:01:13]}
Nc8 {[%clk 00:19:20]} {[%emt 00:09:33]} 25. Rc6 {[%clk 00:55:34]} {[%emt
00:00:08]} 1-0

[Event "Polofinale MCR junioru 2023"]
[Site "Czech Republic"]
[Date "2023.11.18"]
[Round "9.12"]
[White "Trojan, Matyas"]
[Black "Stocek, Martin"]
[Result "0-1"]
[TimeControl "90 min per 40 moves + 15 min + 30 sec / move from move 1"]
[WhiteFideId "23710764"]
[BlackFideId "380121"]
[WhiteElo "1957"]
[BlackElo "2125"]

1. e4 {[%clk 01:27:45]} {[%emt 00:03:14]} c6 {[%clk 01:30:54]} {[%emt
00:00:06]} 2. d4 {[%clk 01:28:09]} {[%emt 00:00:06]} d5 {[%clk 01:31:19]}
{[%emt 00:00:05]} 3. e5 {[%clk 01:28:15]} {[%emt 00:00:24]} Bf5 {[%clk
01:31:42]} {[%emt 00:00:06]} 4. Nf3 {[%clk 01:28:39]} {[%emt 00:00:06]} e6
{[%clk 01:32:04]} {[%emt 00:00:09]} 5. a3 {[%clk 01:29:03]} {[%emt 00:00:07]}
c5 {[%clk 01:22:41]} {[%emt 00:09:53]} 6. c4 {[%clk 01:29:23]} {[%emt
00:00:09]} Ne7 {[%clk 01:20:44]} {[%emt 00:02:27]} 7. dxc5 {[%clk 01:24:23]}
{[%emt 00:05:30]} Nd7 {[%clk 01:05:56]} {[%emt 00:15:19]} 8. b4 {[%clk
01:13:41]} {[%emt 00:11:11]} a5 {[%clk 01:04:25]} {[%emt 00:02:01]} 9. Bb2
{[%clk 01:12:35]} {[%emt 00:01:36]} dxc4 {[%clk 00:53:24]} {[%emt 00:11:32]} 10.
Bxc4 {[%clk 01:10:28]} {[%emt 00:02:36]} axb4 {[%clk 00:53:44]} {[%emt
00:00:10]} 11. axb4 {[%clk 01:09:27]} {[%emt 00:01:31]} Rxa1 {[%clk 00:54:08]}
{[%emt 00:00:06]} 12. Bxa1 {[%clk 01:09:42]} {[%emt 00:00:15]} Nxc5 {[%clk
00:51:30]} {[%emt 00:03:09]} 13. Bb5+ {[%clk 01:02:27]} {[%emt 00:07:44]} Nd7
{[%clk 00:41:20]} {[%emt 00:10:39]} 14. Nc3 {[%clk 00:47:45]} {[%emt 00:15:13]}
Nc6 {[%clk 00:35:59]} {[%emt 00:05:51]} 15. O-O {[%clk 00:37:03]} {[%emt
00:11:12]} Bxb4 {[%clk 00:25:36]} {[%emt 00:10:53]} 16. Nd4 {[%clk 00:28:42]}
{[%emt 00:08:51]} O-O {[%clk 00:13:47]} {[%emt 00:12:19]} 17. Bxc6 {[%clk
00:27:17]} {[%emt 00:01:56]} Bxc3 {[%clk 00:11:30]} {[%emt 00:02:47]} 18. Bxc3
{[%clk 00:27:22]} {[%emt 00:00:24]} bxc6 {[%clk 00:10:58]} {[%emt 00:01:01]} 19.
Nxc6 {[%clk 00:27:20]} {[%emt 00:00:33]} Qc7 {[%clk 00:09:56]} {[%emt
00:01:32]} 20. Ne7+ {[%clk 00:27:22]} {[%emt 00:00:28]} Kh8 {[%clk 00:10:19]}
{[%emt 00:00:06]} 21. Qd4 {[%clk 00:21:57]} {[%emt 00:05:55]} Nb8 {[%clk
00:04:00]} {[%emt 00:06:49]} 22. Nxf5 {[%clk 00:20:12]} {[%emt 00:02:16]} exf5
{[%clk 00:04:12]} {[%emt 00:00:17]} 23. Rd1 {[%clk 00:19:24]} {[%emt 00:01:18]}
Kg8 {[%clk 00:02:52]} {[%emt 00:01:50]} 24. Bb4 {[%clk 00:18:15]} {[%emt
00:01:39]} Re8 {[%clk 00:02:25]} {[%emt 00:00:57]} 25. Bd6 {[%clk 00:18:05]}
{[%emt 00:00:41]} Qc8 {[%clk 00:01:55]} {[%emt 00:01:00]} 26. f4 {[%clk
00:17:02]} {[%emt 00:01:33]} Nd7 {[%clk 00:01:18]} {[%emt 00:01:06]} 27. Ra1
{[%clk 00:17:04]} {[%emt 00:00:28]} Nf8 {[%clk 00:00:57]} {[%emt 00:00:51]} 28.
h3 {[%clk 00:08:08]} {[%emt 00:09:27]} Ne6 {[%clk 00:00:49]} {[%emt 00:00:38]}
29. Qb4 {[%clk 00:08:07]} {[%emt 00:00:31]} h6 {[%clk 00:00:52]} {[%emt
00:00:28]} 30. Kh2 {[%clk 00:07:59]} {[%emt 00:00:37]} Qc2 {[%clk 00:00:47]}
{[%emt 00:00:34]} 31. Qa4 {[%clk 00:03:45]} {[%emt 00:04:45]} Rc8 {[%clk
00:00:49]} {[%emt 00:00:27]} 32. Qxc2 {[%clk 00:03:38]} {[%emt 00:00:37]} Rxc2
{[%clk 00:01:18]} {[%emt 00:00:02]} 33. Ra4 {[%clk 00:03:53]} {[%emt 00:00:15]}
Kh7 {[%clk 00:01:07]} {[%emt 00:00:41]} 34. h4 {[%clk 00:03:42]} {[%emt
00:00:41]} Kg6 {[%clk 00:01:25]} {[%emt 00:00:13]} 35. Kh3 {[%clk 00:02:05]}
{[%emt 00:02:06]} Rd2 {[%clk 00:01:19]} {[%emt 00:00:36]} 36. g3 {[%clk
00:01:41]} {[%emt 00:00:54]} Rd4 {[%clk 00:01:00]} {[%emt 00:00:49]} 37. Ra3
{[%clk 00:01:05]} {[%emt 00:01:06]} Rd2 {[%clk 00:01:03]} {[%emt 00:00:28]} 38.
Ra7 {[%clk 00:00:38]} {[%emt 00:00:57]} h5 {[%clk 00:01:10]} {[%emt 00:00:22]}
39. Ra6 {[%clk 00:00:37]} {[%emt 00:00:32]} Kh7 {[%clk 00:01:07]} {[%emt
00:00:32]} 40. Ra3 {[%clk 00:00:43]} {[%emt 00:00:25]} Nd4 {[%clk 00:01:07]}
{[%emt 00:00:29]} 41. Bc5 {[%clk 00:13:00]} {[%emt 00:03:44]} Ne6 {[%clk
00:09:34]} {[%emt 00:07:33]} 42. Be3 {[%clk 00:11:16]} {[%emt 00:02:13]} Re2
{[%clk 00:09:58]} {[%emt 00:00:07]} 43. Rd3 {[%clk 00:11:10]} {[%emt 00:00:35]}
Rc2 {[%clk 00:05:54]} {[%emt 00:04:34]} 44. Rd7 {[%clk 00:08:42]} {[%emt
00:02:58]} Kg8 {[%clk 00:05:50]} {[%emt 00:00:34]} 45. Rd2 {[%clk 00:07:54]}
{[%emt 00:01:19]} Rxd2 {[%clk 00:03:06]} {[%emt 00:03:15]} 46. Bxd2 {[%clk
00:08:19]} {[%emt 00:00:05]} Kf8 {[%clk 00:03:33]} {[%emt 00:00:02]} 47. Kg2
{[%clk 00:08:29]} {[%emt 00:00:18]} Ke8 {[%clk 00:03:31]} {[%emt 00:00:33]} 48.
Bb4 {[%clk 00:07:35]} {[%emt 00:01:25]} Kd7 {[%clk 00:03:53]} {[%emt 00:00:08]}
49. Kf3 {[%clk 00:07:16]} {[%emt 00:00:47]} Kc6 {[%clk 00:04:20]} {[%emt
00:00:05]} 50. Ke3 {[%clk 00:05:43]} {[%emt 00:02:02]} Kb5 {[%clk 00:04:49]}
{[%emt 00:00:02]} 51. Ba3 {[%clk 00:05:08]} {[%emt 00:01:05]} Kc4 {[%clk
00:03:20]} {[%emt 00:01:59]} 52. Bd6 {[%clk 00:04:18]} {[%emt 00:01:20]} Kc3
{[%clk 00:03:10]} {[%emt 00:00:39]} 53. Be7 {[%clk 00:03:33]} {[%emt 00:01:15]}
Nc7 {[%clk 00:03:29]} {[%emt 00:00:12]} 54. Bf8 {[%clk 00:03:07]} {[%emt
00:00:56]} g6 {[%clk 00:03:50]} {[%emt 00:00:09]} 55. Bc5 {[%clk 00:03:18]}
{[%emt 00:00:18]} Nd5 {[%clk 00:04:13]} {[%emt 00:00:07]} 56. Kf3 {[%clk
00:03:24]} {[%emt 00:00:24]} Kd2 {[%clk 00:03:59]} {[%emt 00:00:44]} 57. Bd4
{[%clk 00:02:55]} {[%emt 00:00:59]} Ke1 {[%clk 00:04:02]} {[%emt 00:00:26]} 58.
Bc5 {[%clk 00:01:31]} {[%emt 00:01:55]} Kf1 {[%clk 00:04:16]} {[%emt 00:00:17]}
59. Bd4 {[%clk 00:01:14]} {[%emt 00:00:46]} Nb4 {[%clk 00:03:38]} {[%emt
00:01:08]} 60. Be3 {[%clk 00:01:09]} {[%emt 00:00:35]} Nd3 {[%clk 00:02:03]}
{[%emt 00:02:05]} 61. Bd2 {[%clk 00:00:58]} {[%emt 00:00:41]} Kg1 {[%clk
00:01:15]} {[%emt 00:01:19]} 62. Be3+ {[%clk 00:01:23]} {[%emt 00:00:05]} Kh2
{[%clk 00:01:34]} {[%emt 00:00:10]} 63. Bd2 {[%clk 00:01:02]} {[%emt 00:00:52]}
Nc5 {[%clk 00:01:52]} {[%emt 00:00:12]} 64. Bc3 {[%clk 00:00:37]} {[%emt
00:00:55]} Ne4 {[%clk 00:02:00]} {[%emt 00:00:21]} 65. Be1 {[%clk 00:01:03]}
{[%emt 00:00:05]} Kh3 {[%clk 00:02:18]} {[%emt 00:00:11]} 66. Bf2 {[%clk
00:01:21]} {[%emt 00:00:13]} Nxf2 {[%clk 00:02:22]} {[%emt 00:00:27]} 67. Kxf2
{[%clk 00:01:46]} {[%emt 00:00:04]} Kh2 {[%clk 00:02:48]} {[%emt 00:00:04]} 68.
Kf3 {[%clk 00:02:05]} {[%emt 00:00:10]} Kg1 {[%emt 00:00:07]} 69. g4 {[%clk
00:01:39]} {[%emt 00:00:55]} hxg4+ {[%clk 00:03:24]} {[%emt 00:00:20]} 70. Kg3
{[%clk 00:02:01]} {[%emt 00:00:07]} Kf1 {[%clk 00:03:49]} {[%emt 00:00:04]} 71.
h5 {[%clk 00:01:30]} {[%emt 00:01:01]} gxh5 {[%clk 00:04:10]} {[%emt 00:00:10]}
72. Kh4 {[%clk 00:01:51]} {[%emt 00:00:08]} Kf2 {[%clk 00:04:23]} {[%emt
00:00:18]} 73. Kxh5 {[%clk 00:01:59]} {[%emt 00:00:22]} g3 {[%clk 00:04:46]}
{[%emt 00:00:07]} 74. Kg5 {[%clk 00:02:19]} {[%emt 00:00:10]} g2 {[%clk
00:05:10]} {[%emt 00:00:06]} 75. Kf6 {[%clk 00:02:39]} {[%emt 00:00:11]} g1=Q
{[%clk 00:05:21]} {[%emt 00:00:18]} 76. Kxf7 {[%clk 00:03:04]} {[%emt
00:00:05]} Qg4 {[%clk 00:05:25]} {[%emt 00:00:25]} 77. e6 {[%clk 00:03:27]}
{[%emt 00:00:07]} Qxf4 {[%clk 00:05:48]} {[%emt 00:00:07]} 0-1

[Event "Polofinale MCR junioru 2023"]
[Site "Czech Republic"]
[Date "2023.11.18"]
[Round "9.14"]
[White "Jirasko, Miroslav"]
[Black "Cerny, Michal"]
[Result "0-1"]
[TimeControl "90 min per 40 moves + 15 min + 30 sec / move from move 1"]
[WhiteFideId "23729414"]
[BlackFideId "391964"]
[WhiteElo "2084"]
[BlackElo "1920"]

1. e4 {[%clk 01:23:39]} {[%emt 00:07:01]} c5 {[%clk 01:30:52]} {[%emt
00:00:17]} 2. Nf3 {[%clk 01:24:02]} {[%emt 00:00:06]} d6 {[%clk 01:31:14]}
{[%emt 00:00:08]} 3. d4 {[%clk 01:24:14]} {[%emt 00:00:18]} cxd4 {[%clk
01:31:37]} {[%emt 00:00:08]} 4. Qxd4 {[%clk 01:24:39]} {[%emt 00:00:04]} Nc6
{[%clk 01:26:55]} {[%emt 00:05:12]} 5. Qe3 {[%clk 01:25:02]} {[%emt 00:00:07]}
g6 {[%clk 01:25:40]} {[%emt 00:01:46]} 6. h3 {[%clk 01:24:22]} {[%emt
00:01:10]} Bg7 {[%clk 01:25:34]} {[%emt 00:00:36]} 7. c4 {[%clk 01:24:42]}
{[%emt 00:00:10]} Nf6 {[%clk 01:24:44]} {[%emt 00:01:19]} 8. Be2 {[%clk
01:24:40]} {[%emt 00:00:32]} O-O {[%clk 01:23:47]} {[%emt 00:01:27]} 9. Nc3
{[%clk 01:24:57]} {[%emt 00:00:13]} Nd7 {[%clk 01:18:19]} {[%emt 00:05:58]} 10.
O-O {[%clk 01:23:48]} {[%emt 00:01:39]} Nde5 {[%clk 01:15:29]} {[%emt
00:03:21]} 11. b3 {[%clk 01:13:05]} {[%emt 00:11:13]} Nxf3+ {[%clk 01:11:02]}
{[%emt 00:04:57]} 12. Bxf3 {[%clk 01:12:58]} {[%emt 00:00:37]} Nd4 {[%clk
01:09:44]} {[%emt 00:01:48]} 13. Bd1 {[%clk 01:12:12]} {[%emt 00:01:16]} b5
{[%clk 01:07:28]} {[%emt 00:02:46]} 14. cxb5 {[%clk 01:05:03]} {[%emt
00:07:40]} Nxb5 {[%clk 01:07:54]} {[%emt 00:00:03]} 15. Bb2 {[%clk 01:03:58]}
{[%emt 00:01:35]} Nxc3 {[%clk 00:59:29]} {[%emt 00:08:55]} 16. Bxc3 {[%clk
00:57:58]} {[%emt 00:06:30]} Bxc3 {[%clk 00:59:28]} {[%emt 00:00:31]} 17. Qxc3
{[%clk 00:58:24]} {[%emt 00:00:05]} Ba6 {[%clk 00:59:43]} {[%emt 00:00:14]} 18.
Re1 {[%clk 00:58:49]} {[%emt 00:00:05]} Qb6 {[%clk 00:58:49]} {[%emt 00:01:23]}
19. Bg4 {[%clk 00:52:31]} {[%emt 00:06:49]} h5 {[%clk 00:57:06]} {[%emt
00:02:13]} 20. Be2 {[%clk 00:45:52]} {[%emt 00:07:09]} Rac8 {[%clk 00:54:14]}
{[%emt 00:03:22]} 21. Qb2 {[%clk 00:46:03]} {[%emt 00:00:19]} Rc6 {[%clk
00:46:57]} {[%emt 00:07:47]} 22. Bxa6 {[%clk 00:43:01]} {[%emt 00:03:32]} Qxa6
{[%clk 00:47:25]} {[%emt 00:00:02]} 23. b4 {[%clk 00:43:16]} {[%emt 00:00:15]}
Qa4 {[%clk 00:41:15]} {[%emt 00:06:39]} 24. Re3 {[%clk 00:42:51]} {[%emt
00:00:55]} Rb8 {[%clk 00:35:27]} {[%emt 00:06:18]} 25. Ra3 {[%clk 00:43:07]}
{[%emt 00:00:14]} Qxb4 {[%clk 00:35:07]} {[%emt 00:00:51]} 26. Qxb4 {[%clk
00:43:31]} {[%emt 00:00:05]} Rxb4 {[%clk 00:35:33]} {[%emt 00:00:05]} 27. Rxa7
{[%clk 00:43:51]} {[%emt 00:00:10]} Rxe4 {[%clk 00:35:29]} {[%emt 00:00:34]} 28.
a4 {[%clk 00:44:16]} {[%emt 00:00:05]} Rc2 {[%clk 00:32:37]} {[%emt 00:03:21]}
29. a5 {[%clk 00:43:57]} {[%emt 00:00:49]} Ree2 {[%clk 00:32:41]} {[%emt
00:00:27]} 30. a6 {[%clk 00:41:56]} {[%emt 00:02:31]} Rxf2 {[%clk 00:31:43]}
{[%emt 00:01:27]} 31. Rxe7 {[%clk 00:41:34]} {[%emt 00:00:52]} Rxg2+ {[%clk
00:32:08]} {[%emt 00:00:05]} 32. Kh1 {[%clk 00:41:19]} {[%emt 00:00:45]} Rh2+
{[%clk 00:32:29]} {[%emt 00:00:09]} 33. Kg1 {[%clk 00:41:45]} {[%emt 00:00:05]}
Rcg2+ {[%clk 00:32:51]} {[%emt 00:00:08]} 34. Kf1 {[%clk 00:42:09]} {[%emt
00:00:06]} Ra2 {[%clk 00:29:13]} {[%emt 00:04:08]} 35. Rxa2 {[%clk 00:42:23]}
{[%emt 00:00:15]} Rxa2 {[%clk 00:29:40]} {[%emt 00:00:03]} 36. a7 {[%clk
00:42:47]} {[%emt 00:00:06]} Kg7 {[%clk 00:29:12]} {[%emt 00:00:57]} 37. Rd7
{[%clk 00:42:53]} {[%emt 00:00:26]} d5 {[%clk 00:27:11]} {[%emt 00:02:31]} 0-1

[Event "Polofinale MCR junioru 2023"]
[Site "Czech Republic"]
[Date "2023.11.18"]
[Round "9.15"]
[White "Vylicil, Adam"]
[Black "Kulhanek, Jachym"]
[Result "1/2-1/2"]
[TimeControl "90 min per 40 moves + 15 min + 30 sec / move from move 1"]
[WhiteFideId "23717556"]
[BlackFideId "23716193"]
[WhiteElo "1896"]
[BlackElo "2056"]

1. d4 {[%clk 01:30:56]} {[%emt 00:00:03]} Nf6 {[%clk 01:30:55]} {[%emt
00:00:05]} 2. c4 {[%clk 01:31:23]} {[%emt 00:00:03]} e6 {[%clk 01:31:10]}
{[%emt 00:00:16]} 3. g3 {[%clk 01:31:46]} {[%emt 00:00:06]} d5 {[%clk
01:31:19]} {[%emt 00:00:21]} 4. Nf3 {[%clk 01:32:12]} {[%emt 00:00:04]} Be7
{[%clk 01:31:06]} {[%emt 00:00:43]} 5. Bg2 {[%clk 01:32:36]} {[%emt 00:00:05]}
O-O {[%clk 01:31:30]} {[%emt 00:00:07]} 6. O-O {[%clk 01:33:01]} {[%emt
00:00:04]} b6 {[%clk 01:31:35]} {[%emt 00:00:26]} 7. cxd5 {[%clk 01:33:15]}
{[%emt 00:00:16]} exd5 {[%clk 01:31:50]} {[%emt 00:00:15]} 8. Nc3 {[%clk
01:33:39]} {[%emt 00:00:05]} Bb7 {[%clk 01:32:03]} {[%emt 00:00:17]} 9. Bf4
{[%clk 01:33:30]} {[%emt 00:00:39]} Nbd7 {[%clk 01:28:51]} {[%emt 00:03:43]} 10.
Rc1 {[%clk 01:30:47]} {[%emt 00:03:12]} c5 {[%clk 01:26:38]} {[%emt 00:02:44]}
11. dxc5 {[%clk 01:27:27]} {[%emt 00:03:51]} bxc5 {[%clk 01:25:39]} {[%emt
00:01:28]} 12. Ne5 {[%clk 01:25:42]} {[%emt 00:02:14]} g5 {[%clk 01:16:10]}
{[%emt 00:10:00]} 13. Nxd7 {[%clk 01:16:22]} {[%emt 00:09:50]} Nxd7 {[%clk
01:16:08]} {[%emt 00:00:31]} 14. Be3 {[%clk 01:07:17]} {[%emt 00:09:35]} Nb6
{[%clk 01:14:51]} {[%emt 00:01:48]} 15. Na4 {[%clk 01:07:29]} {[%emt 00:00:17]}
c4 {[%clk 01:13:22]} {[%emt 00:02:00]} 16. Nc3 {[%clk 01:03:04]} {[%emt
00:04:54]} Qc7 {[%clk 01:06:40]} {[%emt 00:07:13]} 17. Qd2 {[%clk 00:52:10]}
{[%emt 00:11:23]} h6 {[%emt 00:02:21]} 18. Bxb6 {[%clk 00:40:42]} {[%emt
00:11:56]} axb6 {[%clk 01:04:26]} {[%emt 00:00:56]} 19. Bxd5 {[%clk 00:35:24]}
{[%emt 00:05:48]} Rfd8 {[%clk 01:03:15]} {[%emt 00:01:40]} 20. e4 {[%clk
00:35:16]} {[%emt 00:00:38]} Bf6 {[%clk 01:00:16]} {[%emt 00:03:30]} 21. Qe2
{[%clk 00:33:32]} {[%emt 00:02:14]} 1/2-1/2

[Event "Polofinale MCR junioru 2023"]
[Site "Czech Republic"]
[Date "2023.11.18"]
[Round "9.16"]
[White "Steinbauer, Sebastian"]
[Black "Zezula, Jakub"]
[Result "0-1"]
[TimeControl "90 min per 40 moves + 15 min + 30 sec / move from move 1"]
[WhiteFideId "399272"]
[BlackFideId "23723203"]
[WhiteElo "1869"]
[BlackElo "2002"]

1. e4 {[%clk 01:26:40]} {[%emt 00:04:19]} e5 {[%clk 01:30:41]} {[%emt
00:00:19]} 2. Nf3 {[%clk 01:27:06]} {[%emt 00:00:04]} Nc6 {[%clk 01:31:07]}
{[%emt 00:00:04]} 3. Bc4 {[%clk 01:27:32]} {[%emt 00:00:04]} Bc5 {[%clk
01:31:31]} {[%emt 00:00:06]} 4. d3 {[%clk 01:27:56]} {[%emt 00:00:07]} Nf6
{[%clk 01:31:37]} {[%emt 00:00:23]} 5. Nc3 {[%clk 01:28:07]} {[%emt 00:00:19]}
h6 {[%clk 01:30:14]} {[%emt 00:01:53]} 6. Be3 {[%clk 01:28:28]} {[%emt
00:00:09]} Bb6 {[%clk 01:30:35]} {[%emt 00:00:10]} 7. Qd2 {[%clk 01:28:16]}
{[%emt 00:00:41]} d6 {[%clk 01:29:54]} {[%emt 00:01:10]} 8. h3 {[%clk
01:27:53]} {[%emt 00:00:54]} Qe7 {[%clk 01:28:15]} {[%emt 00:02:08]} 9. O-O-O
{[%clk 01:27:41]} {[%emt 00:00:43]} Be6 {[%clk 01:27:27]} {[%emt 00:01:19]} 10.
Nd5 {[%emt 00:00:31]} Bxd5 {[%clk 01:25:16]} {[%emt 00:02:39]} 11. exd5 {[%clk
01:26:15]} {[%emt 00:01:57]} Na5 {[%clk 01:22:31]} {[%emt 00:03:15]} 12. Bb5+
{[%clk 01:25:47]} {[%emt 00:00:59]} c6 {[%clk 01:22:38]} {[%emt 00:00:23]} 13.
dxc6 {[%clk 01:24:18]} {[%emt 00:01:59]} bxc6 {[%clk 01:16:19]} {[%emt
00:06:49]} 14. Ba4 {[%clk 01:24:40]} {[%emt 00:00:07]} O-O {[%clk 01:14:33]}
{[%emt 00:02:16]} 15. b4 {[%clk 01:23:59]} {[%emt 00:01:12]} Nb7 {[%clk
01:10:50]} {[%emt 00:04:12]} 16. Bxc6 {[%clk 01:22:33]} {[%emt 00:01:55]} Rfc8
{[%clk 01:05:59]} {[%emt 00:05:21]} 17. b5 {[%clk 01:08:38]} {[%emt 00:14:25]}
Ba5 {[%clk 01:06:09]} {[%emt 00:00:20]} 18. Qe2 {[%clk 01:08:36]} {[%emt
00:00:33]} a6 {[%clk 01:04:38]} {[%emt 00:02:01]} 19. Kb1 {[%clk 01:02:13]}
{[%emt 00:06:52]} axb5 {[%clk 01:03:01]} {[%emt 00:02:07]} 20. Bxb5 {[%clk
00:59:29]} {[%emt 00:03:15]} Nd5 {[%clk 01:02:23]} {[%emt 00:01:08]} 21. Bd4
{[%clk 00:59:43]} {[%emt 00:00:15]} exd4 {[%clk 01:01:47]} {[%emt 00:01:05]} 22.
Qxe7 {[%clk 01:00:03]} {[%emt 00:00:11]} Nxe7 {[%clk 01:02:08]} {[%emt
00:00:10]} 23. Nxd4 {[%clk 01:00:27]} {[%emt 00:00:06]} Nd5 {[%clk 01:02:14]}
{[%emt 00:00:24]} 24. Rdf1 {[%clk 00:59:44]} {[%emt 00:01:12]} Nc3+ {[%clk
01:00:43]} {[%emt 00:02:01]} 25. Kb2 {[%clk 01:00:07]} {[%emt 00:00:08]} Rab8
{[%clk 00:57:03]} {[%emt 00:04:09]} 26. a4 {[%clk 01:00:03]} {[%emt 00:00:34]}
Nxa4+ {[%clk 00:56:57]} {[%emt 00:00:36]} 0-1